[Event "Titled Tuesday Blitz April 05 Early 2022"]
[White "Horcajuelo Rocamora, Martin"]
[Black "Pinheiro, Iung Alicio de O."]
[WhiteFideId "24573027"]
[BlackFideId "2104350"]
[WhiteElo "1822"]
[BlackElo "2505"]
[Result "0-1"]
[Round "02"]
[TimeControl "180+1"]
[Date "2022.04.05"]
[WhiteClock "0:00:05"]
[BlackClock "0:00:13"]

1. e4 {[%clk 0:02:56]}  c5 {[%clk 0:02:57]} 2. Nf3 {[%clk 0:02:55]}  Nc6 {[%clk 0:02:57]} 3. d4 {[%clk 0:02:55]}  cxd4 {[%clk 0:02:57]} 4. Nxd4 {[%clk 0:02:55]}  Nf6 {[%clk 0:02:57]} 5. Nc3 {[%clk 0:02:55]}  e5 {[%clk 0:02:58]} 6. Ndb5 {[%clk 0:02:55]}  d6 {[%clk 0:02:58]} 7. Bg5 {[%clk 0:02:54]}  a6 {[%clk 0:02:58]} 8. Na3 {[%clk 0:02:54]}  b5 {[%clk 0:02:58]} 9. Nd5 {[%clk 0:02:54]}  Be7 {[%clk 0:02:58]} 10. Bxf6 {[%clk 0:02:54]}  Bxf6 {[%clk 0:02:59]} 11. c3 {[%clk 0:02:55]}  O-O {[%clk 0:02:53]} 12. Nc2 {[%clk 0:02:49]}  Rb8 {[%clk 0:02:53]} 13. Nce3 {[%clk 0:02:43]}  Bg5 {[%clk 0:02:49]} 14. g3 {[%clk 0:02:29]}  Ne7 {[%clk 0:02:35]} 15. Nxe7+ {[%clk 0:02:17]}  Qxe7 {[%clk 0:02:33]} 16. Nd5 {[%clk 0:02:17]}  Qb7 {[%clk 0:02:32]} 17. Bg2 {[%clk 0:02:12]}  Be6 {[%clk 0:02:18]} 18. O-O {[%clk 0:01:38]}  Bxd5 {[%clk 0:02:10]} 19. exd5 {[%clk 0:01:15]}  a5 {[%clk 0:02:00]} 20. h4 {[%clk 0:01:04]}  Bd8 {[%clk 0:01:59]} 21. h5 {[%clk 0:01:01]}  f5 {[%clk 0:01:53]} 22. g4 {[%clk 0:00:56]}  g6 {[%clk 0:01:43]} 23. hxg6 {[%clk 0:00:54]}  hxg6 {[%clk 0:01:44]} 24. gxf5 {[%clk 0:00:53]}  gxf5 {[%clk 0:01:45]} 25. Qf3 {[%clk 0:00:46]}  Qg7 {[%clk 0:01:42]} 26. Rfe1 {[%clk 0:00:40]}  Bb6 {[%clk 0:01:40]} 27. Kf1 {[%clk 0:00:31]}  b4 {[%clk 0:01:31]} 28. cxb4 {[%clk 0:00:28]}  axb4 {[%clk 0:01:32]} 29. Rac1 {[%clk 0:00:28]}  Bd4 {[%clk 0:01:11]} 30. Rc6 {[%clk 0:00:26]}  e4 {[%clk 0:01:07]} 31. Qg3 {[%clk 0:00:15]}  Qxg3 {[%clk 0:00:57]} 32. fxg3 {[%clk 0:00:16]}  Be5 {[%clk 0:00:57]} 33. Kf2 {[%clk 0:00:17]}  Ra8 {[%clk 0:00:57]} 34. a3 {[%clk 0:00:11]}  b3 {[%clk 0:00:53]} 35. Re3 {[%clk 0:00:10]}  Bd4 {[%clk 0:00:51]} 36. Rxd6 {[%clk 0:00:09]}  Rac8 {[%clk 0:00:46]} 37. Rc6 {[%clk 0:00:09]}  Rxc6 {[%clk 0:00:46]} 38. dxc6 {[%clk 0:00:10]}  Rc8 {[%clk 0:00:46]} 39. Ke2 {[%clk 0:00:10]}  Bxe3 {[%clk 0:00:45]} 40. Kxe3 {[%clk 0:00:11]}  Rxc6 {[%clk 0:00:46]} 41. Bh3 {[%clk 0:00:11]}  Rc2 {[%clk 0:00:32]} 42. Bxf5 {[%clk 0:00:11]}  Rxb2 {[%clk 0:00:33]} 43. Kxe4 {[%clk 0:00:12]}  Kg7 {[%clk 0:00:30]} 44. Kd4 {[%clk 0:00:08]}  Ra2 {[%clk 0:00:21]} 45. Kc3 {[%clk 0:00:08]}  b2 {[%clk 0:00:19]} 46. g4 {[%clk 0:00:06]}  Rxa3+ {[%clk 0:00:14]} 47. Kxb2 {[%clk 0:00:06]}  Rg3 {[%clk 0:00:15]} 48. Kc2 {[%clk 0:00:05]}  Kf6 {[%clk 0:00:16]} 49. Kd2 {[%clk 0:00:06]}  Ke5 {[%clk 0:00:16]} 50. Ke2 {[%clk 0:00:06]}  Kf4 {[%clk 0:00:16]} 51. Kf2 {[%clk 0:00:07]}  Ra3 {[%clk 0:00:16]} 52. Ke2 {[%clk 0:00:07]}  Ra2+ {[%clk 0:00:17]} 53. Kd3 {[%clk 0:00:08]}  Ra4 {[%clk 0:00:17]} 54. Kc3 {[%clk 0:00:07]}  Kg5 {[%clk 0:00:17]} 55. Kd3 {[%clk 0:00:07]}  Rb4 {[%clk 0:00:17]} 56. Ke3 {[%clk 0:00:08]}  Rb8 {[%clk 0:00:18]} 57. Ke4 {[%clk 0:00:08]}  Rh8 {[%clk 0:00:18]} 58. Kd5 {[%clk 0:00:08]}  Rh1 {[%clk 0:00:19]} 59. Ke6 {[%clk 0:00:09]}  Re1+ {[%clk 0:00:20]} 60. Kd5 {[%clk 0:00:09]}  Ra1 {[%clk 0:00:20]} 61. Kd4 {[%clk 0:00:10]}  Ra5 {[%clk 0:00:20]} 62. Ke3 {[%clk 0:00:11]}  Ra4 {[%clk 0:00:21]} 63. Ke2 {[%clk 0:00:12]}  Kf4 {[%clk 0:00:21]} 64. Kf2 {[%clk 0:00:12]}  Ra2+ {[%clk 0:00:21]} 65. Ke1 {[%clk 0:00:12]}  Kf3 {[%clk 0:00:21]} 66. Kd1 {[%clk 0:00:13]}  Rh2 {[%clk 0:00:20]} 67. g5 {[%clk 0:00:11]}  Kf4 {[%clk 0:00:20]} 68. Bd3 {[%clk 0:00:10]}  Kxg5 {[%clk 0:00:20]} 69. Be2 {[%clk 0:00:10]}  Kf4 {[%clk 0:00:20]} 70. Bc4 {[%clk 0:00:09]}  Ke3 {[%clk 0:00:20]} 71. Kc1 {[%clk 0:00:10]}  Kd4 {[%clk 0:00:20]} 72. Be6 {[%clk 0:00:09]}  Kc3 {[%clk 0:00:21]} 73. Kb1 {[%clk 0:00:10]}  Re2 {[%clk 0:00:20]} 74. Bf5 {[%clk 0:00:08]}  Kb3 {[%clk 0:00:19]} 75. Ka1 {[%clk 0:00:07]}  Ka3 {[%clk 0:00:16]} 76. Bb1 {[%clk 0:00:06]}  Re7 {[%clk 0:00:15]} 77. Bh7 {[%clk 0:00:06]}  Kb3 {[%clk 0:00:16]} 78. Bg8+ {[%clk 0:00:05]}  Kc3 {[%clk 0:00:15]} 79. Kb1 {[%clk 0:00:05]}  Rb7+ {[%clk 0:00:14]} 80. Kc1 {[%clk 0:00:04]}  Rg7 {[%clk 0:00:15]} 81. Kb1 {[%clk 0:00:04]}  Rxg8 {[%clk 0:00:15]} 82. Ka2 {[%clk 0:00:05]}  Ra8+ {[%clk 0:00:13]} 0-1


[Site "https://www.chess.com"]

[Event "Titled Tuesday Blitz April 05 Early 2022"]
[White "Ianov, Viktor"]
[Black "Barbashin, Igor"]
[WhiteFideId "14102730"]
[BlackFideId "4155718"]
[WhiteElo "2161"]
[BlackElo "2138"]
[Result "1-0"]
[Round "02"]
[TimeControl "180+1"]
[Date "2022.04.05"]
[WhiteClock "0:02:43"]
[BlackClock "0:01:33"]

1. Nf3 {[%clk 0:03:00]}  c5 {[%clk 0:02:58]} 2. g3 {[%clk 0:03:00]}  Nf6 {[%clk 0:02:58]} 3. Bg2 {[%clk 0:03:00]}  g6 {[%clk 0:02:59]} 4. b3 {[%clk 0:02:59]}  Bg7 {[%clk 0:02:59]} 5. Bb2 {[%clk 0:03:00]}  O-O {[%clk 0:02:59]} 6. c4 {[%clk 0:03:00]}  Nc6 {[%clk 0:02:57]} 7. O-O {[%clk 0:02:59]}  d5 {[%clk 0:02:48]} 8. cxd5 {[%clk 0:02:58]}  Nxd5 {[%clk 0:02:49]} 9. Bxg7 {[%clk 0:02:58]}  Kxg7 {[%clk 0:02:50]} 10. d4 {[%clk 0:02:58]}  cxd4 {[%clk 0:02:43]} 11. Nxd4 {[%clk 0:02:58]}  Nxd4 {[%clk 0:02:43]} 12. Qxd4+ {[%clk 0:02:58]}  Nf6 {[%clk 0:02:43]} 13. Qe5 {[%clk 0:02:58]}  Qb6 {[%clk 0:02:07]} 14. Nc3 {[%clk 0:02:58]}  Rd8 {[%clk 0:02:06]} 15. Rfd1 {[%clk 0:02:51]}  Be6 {[%clk 0:02:03]} 16. Na4 {[%clk 0:02:49]}  Qb4 {[%clk 0:02:00]} 17. Nc5 {[%clk 0:02:48]}  Rxd1+ {[%clk 0:01:45]} 18. Rxd1 {[%clk 0:02:47]}  Bd5 {[%clk 0:01:41]} 19. Qxe7 {[%clk 0:02:44]}  Bxg2 {[%clk 0:01:37]} 20. Ne6+ {[%clk 0:02:43]}  Kg8 {[%clk 0:01:33]} 21. Qxb4 {[%clk 0:02:43]} 1-0


[Site "https://www.chess.com"]

[Event "Titled Tuesday Blitz April 05 Early 2022"]
[White "Kaminski, Victor"]
[Black "Shyaamnikhil P"]
[WhiteFideId "1131630"]
[BlackFideId "5024218"]
[WhiteElo "2353"]
[BlackElo "2713"]
[Result "0-1"]
[Round "02"]
[TimeControl "180+1"]
[Date "2022.04.05"]
[WhiteClock "0:00:02"]
[BlackClock "0:00:25"]

1. e4 {[%clk 0:03:00]}  c5 {[%clk 0:02:58]} 2. Nf3 {[%clk 0:03:00]}  a6 {[%clk 0:02:57]} 3. c4 {[%clk 0:02:58]}  e6 {[%clk 0:02:55]} 4. Nc3 {[%clk 0:02:57]}  d6 {[%clk 0:02:56]} 5. d4 {[%clk 0:02:56]}  cxd4 {[%clk 0:02:55]} 6. Nxd4 {[%clk 0:02:57]}  Nf6 {[%clk 0:02:54]} 7. Be2 {[%clk 0:02:56]}  b6 {[%clk 0:02:54]} 8. O-O {[%clk 0:02:55]}  Bb7 {[%clk 0:02:54]} 9. f3 {[%clk 0:02:56]}  Nbd7 {[%clk 0:02:52]} 10. Be3 {[%clk 0:02:56]}  Be7 {[%clk 0:02:51]} 11. Rc1 {[%clk 0:02:55]}  O-O {[%clk 0:02:50]} 12. Qb3 {[%clk 0:02:51]}  Re8 {[%clk 0:02:48]} 13. Rfd1 {[%clk 0:02:51]}  Rb8 {[%clk 0:02:47]} 14. Kh1 {[%clk 0:02:34]}  Bf8 {[%clk 0:02:47]} 15. Qa4 {[%clk 0:02:32]}  d5 {[%clk 0:02:44]} 16. Nc6 {[%clk 0:02:19]}  Bxc6 {[%clk 0:02:40]} 17. Qxc6 {[%clk 0:02:20]}  dxe4 {[%clk 0:02:27]} 18. Nxe4 {[%clk 0:02:13]}  Qc8 {[%clk 0:02:24]} 19. Qxc8 {[%clk 0:02:03]}  Rexc8 {[%clk 0:02:24]} 20. Bf4 {[%clk 0:01:34]}  Ra8 {[%clk 0:02:19]} 21. Nd6 {[%clk 0:01:31]}  Rc6 {[%clk 0:01:59]} 22. Ne4 {[%clk 0:01:15]}  Be7 {[%clk 0:01:42]} 23. Kg1 {[%clk 0:01:13]}  Kf8 {[%clk 0:01:40]} 24. b3 {[%clk 0:01:09]}  Ke8 {[%clk 0:01:33]} 25. Bd3 {[%clk 0:01:09]}  Nh5 {[%clk 0:01:21]} 26. Be3 {[%clk 0:00:56]}  f5 {[%clk 0:01:20]} 27. Ng3 {[%clk 0:00:52]}  Nxg3 {[%clk 0:01:20]} 28. hxg3 {[%clk 0:00:53]}  Bc5 {[%clk 0:01:20]} 29. Kf2 {[%clk 0:00:48]}  Rd8 {[%clk 0:01:14]} 30. Bc2 {[%clk 0:00:38]}  Bxe3+ {[%clk 0:01:12]} 31. Kxe3 {[%clk 0:00:39]}  Nf6 {[%clk 0:01:08]} 32. Rxd8+ {[%clk 0:00:23]}  Kxd8 {[%clk 0:01:09]} 33. Rd1+ {[%clk 0:00:24]}  Ke7 {[%clk 0:01:09]} 34. Kf4 {[%clk 0:00:13]}  h6 {[%clk 0:01:06]} 35. Ke3 {[%clk 0:00:07]}  a5 {[%clk 0:01:03]} 36. Rh1 {[%clk 0:00:03]}  Rd6 {[%clk 0:01:01]} 37. Bd3 {[%clk 0:00:04]}  Nd7 {[%clk 0:00:59]} 38. Ke2 {[%clk 0:00:03]}  Nc5 {[%clk 0:00:59]} 39. Bc2 {[%clk 0:00:04]}  Kf6 {[%clk 0:00:59]} 40. Rh5 {[%clk 0:00:03]}  Nd7 {[%clk 0:00:55]} 41. Rh1 {[%clk 0:00:03]}  Ne5 {[%clk 0:00:53]} 42. Rb1 {[%clk 0:00:03]}  Nc6 {[%clk 0:00:53]} 43. Bd3 {[%clk 0:00:01]}  Nd4+ {[%clk 0:00:53]} 44. Ke3 {[%clk 0:00:02]}  e5 {[%clk 0:00:51]} 45. a3 {[%clk 0:00:02]}  Ne6 {[%clk 0:00:50]} 46. b4 {[%clk 0:00:02]}  f4+ {[%clk 0:00:50]} 47. gxf4 {[%clk 0:00:02]}  exf4+ {[%clk 0:00:51]} 48. Ke2 {[%clk 0:00:02]}  axb4 {[%clk 0:00:50]} 49. axb4 {[%clk 0:00:01]}  Nd4+ {[%clk 0:00:50]} 50. Kf2 {[%clk 0:00:02]}  Nxf3 {[%clk 0:00:35]} 51. Kxf3 {[%clk 0:00:01]}  Rxd3+ {[%clk 0:00:35]} 52. Kxf4 {[%clk 0:00:02]}  Rd4+ {[%clk 0:00:35]} 53. Ke3 {[%clk 0:00:02]}  Rxc4 {[%clk 0:00:36]} 54. b5 {[%clk 0:00:02]}  Rc5 {[%clk 0:00:35]} 55. Kd4 {[%clk 0:00:02]}  Kg5 {[%clk 0:00:35]} 56. Rb3 {[%clk 0:00:02]}  Kg4 {[%clk 0:00:35]} 57. Ke4 {[%clk 0:00:03]}  g5 {[%clk 0:00:34]} 58. Kd4 {[%clk 0:00:03]}  h5 {[%clk 0:00:34]} 59. Ke4 {[%clk 0:00:02]}  h4 {[%clk 0:00:31]} 60. Kd4 {[%clk 0:00:02]}  Kf4 {[%clk 0:00:31]} 61. Rf3+ {[%clk 0:00:01]}  Kg4 {[%clk 0:00:32]} 62. Rb3 {[%clk 0:00:02]}  Kf5 {[%clk 0:00:27]} 63. Rf3+ {[%clk 0:00:02]}  Kg6 {[%clk 0:00:25]} 64. Rb3 {[%clk 0:00:03]}  g4 {[%clk 0:00:24]} 65. Ke4 {[%clk 0:00:03]}  Kg5 {[%clk 0:00:25]} 66. Kd4 {[%clk 0:00:03]}  Kf4 {[%clk 0:00:25]} 67. Kd3 {[%clk 0:00:02]}  Kg3 {[%clk 0:00:25]} 68. Kd4+ {[%clk 0:00:02]}  Kxg2 {[%clk 0:00:25]} 0-1


[Site "https://www.chess.com"]

[Event "Titled Tuesday Blitz April 05 Early 2022"]
[White "Kobalia, Mikhail"]
[Black "Tan, Jun Ying"]
[WhiteFideId "4119150"]
[BlackFideId "5710413"]
[WhiteElo "2667"]
[BlackElo "1827"]
[Result "1-0"]
[Round "02"]
[TimeControl "180+1"]
[Date "2022.04.05"]
[WhiteClock "0:00:52"]
[BlackClock "0:00:40"]

1. e4 {[%clk 0:03:00]}  c5 {[%clk 0:02:59]} 2. Nf3 {[%clk 0:03:00]}  Nc6 {[%clk 0:03:00]} 3. Bb5 {[%clk 0:03:00]}  d6 {[%clk 0:03:00]} 4. O-O {[%clk 0:02:59]}  Bd7 {[%clk 0:03:01]} 5. Re1 {[%clk 0:02:58]}  Nf6 {[%clk 0:03:01]} 6. c3 {[%clk 0:02:57]}  a6 {[%clk 0:03:01]} 7. Bf1 {[%clk 0:02:58]}  Bg4 {[%clk 0:03:01]} 8. h3 {[%clk 0:02:58]}  Bxf3 {[%clk 0:03:02]} 9. Qxf3 {[%clk 0:02:57]}  e6 {[%clk 0:03:03]} 10. d3 {[%clk 0:02:56]}  Be7 {[%clk 0:03:03]} 11. Qe2 {[%clk 0:02:54]}  O-O {[%clk 0:03:04]} 12. Nd2 {[%clk 0:02:54]}  b5 {[%clk 0:03:02]} 13. Nf3 {[%clk 0:02:41]}  d5 {[%clk 0:02:57]} 14. e5 {[%clk 0:02:39]}  Nd7 {[%clk 0:02:57]} 15. d4 {[%clk 0:02:39]}  c4 {[%clk 0:02:57]} 16. Nh2 {[%clk 0:02:34]}  b4 {[%clk 0:02:56]} 17. Qc2 {[%clk 0:02:30]}  bxc3 {[%clk 0:02:52]} 18. bxc3 {[%clk 0:02:29]}  Qa5 {[%clk 0:02:52]} 19. Bd2 {[%clk 0:02:20]}  Rfb8 {[%clk 0:02:51]} 20. f4 {[%clk 0:02:09]}  Ba3 {[%clk 0:02:35]} 21. Rab1 {[%clk 0:02:08]}  Rb5 {[%clk 0:02:28]} 22. Nf3 {[%clk 0:02:05]}  Rab8 {[%clk 0:02:25]} 23. f5 {[%clk 0:02:01]}  Rxb1 {[%clk 0:02:14]} 24. Rxb1 {[%clk 0:02:01]}  Rxb1 {[%clk 0:02:15]} 25. Qxb1 {[%clk 0:01:59]}  Qb5 {[%clk 0:02:14]} 26. Qc2 {[%clk 0:01:58]}  exf5 {[%clk 0:01:53]} 27. Qxf5 {[%clk 0:01:57]}  Nf8 {[%clk 0:01:54]} 28. Qc2 {[%clk 0:01:34]}  Nd8 {[%clk 0:01:45]} 29. g3 {[%clk 0:01:34]}  Nde6 {[%clk 0:01:45]} 30. h4 {[%clk 0:01:34]}  Qb2 {[%clk 0:01:38]} 31. Qxb2 {[%clk 0:01:29]}  Bxb2 {[%clk 0:01:39]} 32. Kf2 {[%clk 0:01:29]}  Nd7 {[%clk 0:01:36]} 33. Ke2 {[%clk 0:01:29]}  Nb6 {[%clk 0:01:33]} 34. Kd1 {[%clk 0:01:29]}  Kf8 {[%clk 0:01:26]} 35. Kc2 {[%clk 0:01:28]}  Ba3 {[%clk 0:01:27]} 36. Bh3 {[%clk 0:01:27]}  Ke7 {[%clk 0:01:21]} 37. g4 {[%clk 0:01:24]}  h6 {[%clk 0:01:12]} 38. g5 {[%clk 0:01:21]}  h5 {[%clk 0:01:08]} 39. Ne1 {[%clk 0:01:15]}  Nd7 {[%clk 0:01:04]} 40. Ng2 {[%clk 0:01:14]}  Ndf8 {[%clk 0:01:02]} 41. Bf5 {[%clk 0:01:13]}  g6 {[%clk 0:00:57]} 42. Bh3 {[%clk 0:01:12]}  Nd7 {[%clk 0:00:52]} 43. Be1 {[%clk 0:01:12]}  Nb6 {[%clk 0:00:51]} 44. Bg3 {[%clk 0:01:11]}  Nd7 {[%clk 0:00:46]} 45. Ne3 {[%clk 0:01:10]}  Nb6 {[%clk 0:00:45]} 46. Bg2 {[%clk 0:01:10]}  Nc7 {[%clk 0:00:44]} 47. e6 {[%clk 0:01:08]}  Nxe6 {[%clk 0:00:40]} 48. Nxd5+ {[%clk 0:01:06]}  Nxd5 {[%clk 0:00:41]} 49. Bxd5 {[%clk 0:01:06]}  Bd6 {[%clk 0:00:40]} 50. Bxd6+ {[%clk 0:01:02]}  Kxd6 {[%clk 0:00:41]} 51. Bxc4 {[%clk 0:01:02]}  a5 {[%clk 0:00:41]} 52. Bxe6 {[%clk 0:01:01]}  Kxe6 {[%clk 0:00:39]} 53. c4 {[%clk 0:01:01]}  Kf5 {[%clk 0:00:37]} 54. c5 {[%clk 0:01:02]}  Kg4 {[%clk 0:00:37]} 55. c6 {[%clk 0:01:02]}  Kxh4 {[%clk 0:00:38]} 56. c7 {[%clk 0:01:02]}  Kxg5 {[%clk 0:00:39]} 57. c8=Q {[%clk 0:01:03]}  f5 {[%clk 0:00:39]} 58. Qd8+ {[%clk 0:01:02]}  Kg4 {[%clk 0:00:39]} 59. d5 {[%clk 0:01:01]}  g5 {[%clk 0:00:40]} 60. d6 {[%clk 0:01:01]}  h4 {[%clk 0:00:41]} 61. d7 {[%clk 0:01:02]}  h3 {[%clk 0:00:41]} 62. Qh8 {[%clk 0:01:02]}  Kg3 {[%clk 0:00:42]} 63. d8=Q {[%clk 0:01:02]}  g4 {[%clk 0:00:42]} 64. Qd3+ {[%clk 0:01:01]}  Kg2 {[%clk 0:00:42]} 65. Qe2+ {[%clk 0:01:00]}  Kg3 {[%clk 0:00:42]} 66. Qc3+ {[%clk 0:01:00]}  Kh4 {[%clk 0:00:42]} 67. Qf2+ {[%clk 0:01:00]}  Kg5 {[%clk 0:00:42]} 68. Qg7+ {[%clk 0:00:59]}  Kh5 {[%clk 0:00:42]} 69. Qf4 {[%clk 0:00:59]}  g3 {[%clk 0:00:40]} 70. Qfg5# {[%clk 0:00:52]} 1-0


[Site "https://www.chess.com"]

[Event "Titled Tuesday Blitz April 05 Early 2022"]
[White "Kokoszczynski, Jan"]
[Black "Demchenko, Anton"]
[WhiteFideId "1174460"]
[BlackFideId "4160258"]
[WhiteElo "2163"]
[BlackElo "2539"]
[Result "0-1"]
[Round "02"]
[TimeControl "180+1"]
[Date "2022.04.05"]
[WhiteClock "0:00:15"]
[BlackClock "0:00:16"]

1. d4 {[%clk 0:02:57]}  Nf6 {[%clk 0:02:59]} 2. c4 {[%clk 0:02:57]}  e6 {[%clk 0:03:00]} 3. Nc3 {[%clk 0:02:57]}  Bb4 {[%clk 0:03:00]} 4. e3 {[%clk 0:02:56]}  b6 {[%clk 0:02:59]} 5. Bd3 {[%clk 0:02:56]}  Bb7 {[%clk 0:02:59]} 6. Nf3 {[%clk 0:02:56]}  Ne4 {[%clk 0:02:59]} 7. Qc2 {[%clk 0:02:47]}  f5 {[%clk 0:02:55]} 8. O-O {[%clk 0:02:47]}  Bxc3 {[%clk 0:02:55]} 9. bxc3 {[%clk 0:02:47]}  O-O {[%clk 0:02:55]} 10. Nd2 {[%clk 0:02:46]}  Qh4 {[%clk 0:02:52]} 11. f3 {[%clk 0:02:35]}  Nxd2 {[%clk 0:02:43]} 12. Qxd2 {[%clk 0:02:34]}  c5 {[%clk 0:02:43]} 13. a4 {[%clk 0:02:31]}  Nc6 {[%clk 0:02:41]} 14. Ba3 {[%clk 0:02:30]}  d6 {[%clk 0:02:35]} 15. Rab1 {[%clk 0:02:23]}  Na5 {[%clk 0:02:31]} 16. Qf2 {[%clk 0:02:05]}  Qxf2+ {[%clk 0:02:26]} 17. Rxf2 {[%clk 0:02:02]}  Ba6 {[%clk 0:02:25]} 18. Bc1 {[%clk 0:01:41]}  Bxc4 {[%clk 0:02:22]} 19. Bxc4 {[%clk 0:01:40]}  Nxc4 {[%clk 0:02:23]} 20. e4 {[%clk 0:01:37]}  fxe4 {[%clk 0:02:23]} 21. fxe4 {[%clk 0:01:38]}  Rac8 {[%clk 0:01:21]} 22. Bg5 {[%clk 0:01:33]}  h6 {[%clk 0:01:18]} 23. Bf4 {[%clk 0:01:20]}  Rf7 {[%clk 0:01:12]} 24. Re1 {[%clk 0:00:51]}  Rcf8 {[%clk 0:00:55]} 25. Bg3 {[%clk 0:00:51]}  Rxf2 {[%clk 0:00:56]} 26. Bxf2 {[%clk 0:00:52]}  Kf7 {[%clk 0:00:57]} 27. g3 {[%clk 0:00:49]}  Ke7 {[%clk 0:00:55]} 28. Kg2 {[%clk 0:00:50]}  Kd7 {[%clk 0:00:54]} 29. h4 {[%clk 0:00:48]}  h5 {[%clk 0:00:50]} 30. Be3 {[%clk 0:00:48]}  Kc6 {[%clk 0:00:42]} 31. Bg5 {[%clk 0:00:45]}  Rf7 {[%clk 0:00:41]} 32. Re2 {[%clk 0:00:41]}  a6 {[%clk 0:00:39]} 33. g4 {[%clk 0:00:41]}  g6 {[%clk 0:00:36]} 34. gxh5 {[%clk 0:00:40]}  gxh5 {[%clk 0:00:37]} 35. Kg3 {[%clk 0:00:37]}  b5 {[%clk 0:00:37]} 36. axb5+ {[%clk 0:00:37]}  Kxb5 {[%clk 0:00:38]} 37. Bd8 {[%clk 0:00:22]}  a5 {[%clk 0:00:36]} 38. e5 {[%clk 0:00:20]}  dxe5 {[%clk 0:00:33]} 39. dxe5 {[%clk 0:00:21]}  a4 {[%clk 0:00:33]} 40. Bf6 {[%clk 0:00:22]}  a3 {[%clk 0:00:33]} 41. Kf4 {[%clk 0:00:22]}  Ra7 {[%clk 0:00:32]} 42. Re1 {[%clk 0:00:20]}  a2 {[%clk 0:00:31]} 43. Ra1 {[%clk 0:00:20]}  Nd2 {[%clk 0:00:32]} 44. Kg5 {[%clk 0:00:20]}  Nb3 {[%clk 0:00:32]} 45. Rh1 {[%clk 0:00:20]}  a1=Q {[%clk 0:00:33]} 46. Rxa1 {[%clk 0:00:20]}  Rxa1 {[%clk 0:00:33]} 47. Kxh5 {[%clk 0:00:21]}  Rc1 {[%clk 0:00:30]} 48. Kg6 {[%clk 0:00:21]}  Rxc3 {[%clk 0:00:30]} 49. h5 {[%clk 0:00:22]}  Rh3 {[%clk 0:00:31]} 50. h6 {[%clk 0:00:22]}  Nd4 {[%clk 0:00:30]} 51. h7 {[%clk 0:00:22]}  c4 {[%clk 0:00:25]} 52. Bg5 {[%clk 0:00:20]}  Nf5 {[%clk 0:00:22]} 53. Kf6 {[%clk 0:00:18]}  Rxh7 {[%clk 0:00:22]} 54. Kxe6 {[%clk 0:00:18]}  Nd4+ {[%clk 0:00:17]} 55. Kd5 {[%clk 0:00:18]}  Nf3 {[%clk 0:00:17]} 56. Bc1 {[%clk 0:00:17]}  Rh5 {[%clk 0:00:18]} 57. Bb2 {[%clk 0:00:15]}  Nxe5 {[%clk 0:00:17]} 58. Bxe5 {[%clk 0:00:15]}  c3 {[%clk 0:00:16]} 59. Ke4 {[%clk 0:00:14]}  Rxe5+ {[%clk 0:00:15]} 60. Kxe5 {[%clk 0:00:15]}  c2 {[%clk 0:00:16]} 0-1


[Site "https://www.chess.com"]

[Event "Titled Tuesday Blitz April 05 Early 2022"]
[White "Kopylov, Alexander A."]
[Black "Li, Xueyi"]
[WhiteFideId "4164857"]
[BlackFideId "8605912"]
[WhiteElo "2436"]
[BlackElo "2091"]
[Result "1/2-1/2"]
[Round "02"]
[TimeControl "180+1"]
[Date "2022.04.05"]
[WhiteClock "0:00:16"]
[BlackClock "0:00:33"]

1. e4 {[%clk 0:03:00]}  c5 {[%clk 0:02:55]} 2. Nf3 {[%clk 0:02:57]}  d6 {[%clk 0:02:54]} 3. d4 {[%clk 0:02:57]}  cxd4 {[%clk 0:02:54]} 4. Nxd4 {[%clk 0:02:58]}  Nf6 {[%clk 0:02:55]} 5. Nc3 {[%clk 0:02:59]}  Nc6 {[%clk 0:02:53]} 6. Be2 {[%clk 0:02:53]}  e5 {[%clk 0:02:53]} 7. Nb3 {[%clk 0:02:52]}  Be7 {[%clk 0:02:50]} 8. O-O {[%clk 0:02:51]}  O-O {[%clk 0:02:50]} 9. a4 {[%clk 0:02:46]}  a5 {[%clk 0:02:47]} 10. Bf3 {[%clk 0:02:43]}  Nb4 {[%clk 0:02:45]} 11. Re1 {[%clk 0:02:34]}  Be6 {[%clk 0:02:44]} 12. Nd5 {[%clk 0:02:23]}  Nfxd5 {[%clk 0:02:41]} 13. exd5 {[%clk 0:02:24]}  Bf5 {[%clk 0:02:41]} 14. Be4 {[%clk 0:02:17]}  Bxe4 {[%clk 0:02:39]} 15. Rxe4 {[%clk 0:02:18]}  f5 {[%clk 0:02:38]} 16. Re2 {[%clk 0:02:14]}  b6 {[%clk 0:02:28]} 17. f4 {[%clk 0:02:14]}  Bf6 {[%clk 0:02:26]} 18. c3 {[%clk 0:02:11]}  Na6 {[%clk 0:02:25]} 19. Qd3 {[%clk 0:02:00]}  Nc5 {[%clk 0:02:20]} 20. Nxc5 {[%clk 0:01:59]}  bxc5 {[%clk 0:02:19]} 21. Qxf5 {[%clk 0:01:59]}  exf4 {[%clk 0:02:19]} 22. Qe6+ {[%clk 0:01:55]}  Kh8 {[%clk 0:02:19]} 23. Bxf4 {[%clk 0:01:55]}  Ra6 {[%clk 0:02:18]} 24. Rae1 {[%clk 0:01:48]}  h6 {[%clk 0:02:14]} 25. Kh1 {[%clk 0:01:42]}  Rb6 {[%clk 0:02:13]} 26. Bc1 {[%clk 0:01:40]}  Be5 {[%clk 0:02:09]} 27. Re4 {[%clk 0:01:30]}  Rb7 {[%clk 0:02:09]} 28. h3 {[%clk 0:01:24]}  Re7 {[%clk 0:02:07]} 29. Qg4 {[%clk 0:01:23]}  Ref7 {[%clk 0:02:06]} 30. Qd1 {[%clk 0:01:21]}  Qf6 {[%clk 0:02:03]} 31. Be3 {[%clk 0:01:16]}  Bg3 {[%clk 0:01:45]} 32. Rg1 {[%clk 0:01:11]}  Re7 {[%clk 0:01:26]} 33. Rxe7 {[%clk 0:01:07]}  Qxe7 {[%clk 0:01:26]} 34. Qd3 {[%clk 0:01:03]}  Qh4 {[%clk 0:01:18]} 35. c4 {[%clk 0:00:52]}  Be5 {[%clk 0:01:14]} 36. Bd2 {[%clk 0:00:47]}  Rf2 {[%clk 0:01:11]} 37. Bc3 {[%clk 0:00:41]}  Bf4 {[%clk 0:00:54]} 38. Qg6 {[%clk 0:00:39]}  Qe7 {[%clk 0:00:52]} 39. Qg4 {[%clk 0:00:27]}  Bd2 {[%clk 0:00:38]} 40. Bxd2 {[%clk 0:00:21]}  Rxd2 {[%clk 0:00:38]} 41. Qc8+ {[%clk 0:00:21]}  Kh7 {[%clk 0:00:37]} 42. Qf5+ {[%clk 0:00:21]}  g6 {[%clk 0:00:37]} 43. Qf3 {[%clk 0:00:17]}  Rxb2 {[%clk 0:00:36]} 44. Qc3 {[%clk 0:00:17]}  Re2 {[%clk 0:00:35]} 45. Qxa5 {[%clk 0:00:16]}  Re4 {[%clk 0:00:34]} 46. Qb5 {[%clk 0:00:16]}  h5 {[%clk 0:00:33]} 47. a5 {[%clk 0:00:16]}  Re1 {[%clk 0:00:33]} 48. Rxe1 {[%clk 0:00:15]}  Qxe1+ {[%clk 0:00:33]} 49. Kh2 {[%clk 0:00:15]}  Qe5+ {[%clk 0:00:33]} 50. Kh1 {[%clk 0:00:15]}  Qe1+ {[%clk 0:00:33]} 51. Kh2 {[%clk 0:00:15]}  Qe5+ {[%clk 0:00:33]} 52. Kh1 {[%clk 0:00:16]}  Qe1+ {[%clk 0:00:33]} 1/2-1/2


[Site "https://www.chess.com"]